bitfinex/quotes_BTCUSD_20260101
["timestamp","ask_amount","ask_price","bid_price","bid_amount"]
[1767242996097,0.000147,87655.0,87628.0,0.06847063]
[1767242996098,0.04568,87634.0,87629.0,0.48275314]
[1767242996297,0.01144,87633.0,87629.0,0.48275314]
[1767242996722,0.01144,87633.0,87629.0,0.49416488]
[1767242997927,0.01144,87632.0,87629.0,0.48275314]
[1767242998133,0.04568,87636.0,87629.0,0.48275314]
[1767242998134,0.01144,87631.0,87629.0,0.48275314]
[1767242998966,0.04568,87634.0,87630.0,0.01141161]
[1767242999166,0.01144,87633.0,87629.0,0.49416488]
[1767242999370,0.4756639,87643.0,87629.0,0.49416488]
[1767242999599,0.04568,87633.0,87630.0,0.52812426]
[1767242999773,0.01144,87632.0,87630.0,0.01141161]
[1767242999948,0.01144,87632.0,87629.0,0.49416488]
[1767243000152,0.01144,87632.0,87629.0,0.48275314]
[1767243000938,0.01144,87632.0,87629.0,0.49416488]
[1767243001262,0.01144,87632.0,87629.0,0.55122352]
[1767243001464,0.4756639,87643.0,87632.0,0.01141135]
[1767243001679,0.05712,87642.0,87631.0,0.01141148]
[1767243001902,0.05712,87642.0,87630.0,0.01141161]
[1767243002169,0.000549,87631.0,87630.0,0.51616265]
[1767243002347,0.011989,87631.0,87624.0,0.01141239]
[1767243002551,0.01144,87631.0,87624.0,0.01141239]
[1767243002763,0.01144,87631.0,87623.0,0.48275314]
[1767243003109,0.01144,87631.0,87625.0,0.148251]
[1767243004335,0.4756639,87638.0,87625.0,0.15966326]
[1767243004563,0.05712,87637.0,87625.0,0.15966326]
[1767243004873,0.01144,87636.0,87622.0,0.48275314]
[1767243005049,0.05712,87636.0,87628.0,0.01141187]
[1767243005252,0.05712,87636.0,87623.0,0.22825057]
[1767243005253,0.05712,87636.0,87627.0,0.011412]
[1767243005623,0.05712,87636.0,87623.0,0.49416566]
[1767243005824,0.05712,87636.0,87624.0,0.01141239]
[1767243006634,0.05712,87636.0,87623.0,0.55122801]
[1767243006852,0.05712,87636.0,87624.0,0.01141239]
[1767243007573,0.05712,87636.0,87623.0,0.49416566]
[1767243007771,0.05712,87636.0,87623.0,0.48275314]
[1767243008245,0.4756639,87635.0,87621.0,0.01141278]
[1767243010089,0.4756639,87635.0,87620.0,1.0108787]
[1767243010303,0.4756639,87635.0,87621.0,0.01141278]
[1767243010481,0.4756639,87635.0,87622.0,0.01141265]
[1767243010882,0.05712,87634.0,87620.0,1.0108787]
[1767243011077,0.05712,87634.0,87621.0,0.01141278]
[1767243011268,0.05712,87634.0,87620.0,0.48275314]
[1767243011468,0.05712,87634.0,87620.0,1.0108787]
[1767243011800,0.05712,87634.0,87620.0,0.52812556]
[1767243012102,0.05712,87634.0,87621.0,0.49416592]
[1767243013306,0.0573213,87634.0,87621.0,0.49416592]
[1767243013519,0.0573213,87634.0,87621.0,0.48275314]
[1767243014925,0.0573213,87634.0,87621.0,0.49416592]
[1767243015093,0.0573213,87634.0,87624.0,0.01141239]
[1767243015295,0.0573213,87634.0,87622.0,0.06847577]
[1767243015530,0.0573213,87634.0,87624.0,0.01141239]
[1767243016035,0.05712,87633.0,87624.0,0.01141239]
[1767243016212,0.05712,87633.0,87621.0,0.49416592]
[1767243016385,0.0573213,87633.0,87621.0,0.49416592]
[1767243016835,0.0573213,87633.0,87622.0,0.01141265]
[1767243016982,0.0573213,87633.0,87621.0,0.49416592]
[1767243017680,0.0573213,87633.0,87622.0,0.01141265]
[1767243018044,0.0573213,87633.0,87624.0,0.01141239]
[1767243018367,0.0573213,87633.0,87623.0,0.01141252]
[1767243018732,0.0573213,87633.0,87622.0,0.49416579]
[1767243018977,0.0573213,87633.0,87622.0,0.48275314]
[1767243019139,0.0573213,87633.0,87623.0,0.01141252]
[1767243019541,0.0573213,87633.0,87622.0,0.48275314]
[1767243020682,0.0573213,87633.0,87622.0,0.49416579]
[1767243020879,0.0573213,87633.0,87622.0,0.48275314]
[1767243021864,0.0573213,87633.0,87622.0,0.49416579]
[1767243022066,0.0573213,87633.0,87624.0,0.01141239]
[1767243022268,0.0573213,87633.0,87623.0,0.01141252]
[1767243023145,0.0573213,87633.0,87623.0,0.46343382]
[1767243023645,0.0573213,87633.0,87624.0,0.01141239]
[1767243023849,0.0573213,87633.0,87623.0,0.46343382]
[1767243024406,0.0573213,87633.0,87623.0,0.98014647]
[1767243024598,0.0573213,87633.0,87623.0,0.96873395]
[1767243025011,0.0573213,87633.0,87623.0,0.98014647]
[1767243025225,0.0573213,87633.0,87623.0,0.96873395]
[1767243025613,0.0573213,87633.0,87623.0,0.98014647]
[1767243026018,0.0573213,87633.0,87623.0,0.96873395]
[1767243026571,0.01144,87632.0,87624.0,0.01141239]
[1767243026735,0.05712,87632.0,87623.0,0.46343382]
[1767243027254,0.05712,87632.0,87623.0,0.4520213]
[1767243027405,0.0573213,87632.0,87623.0,0.46343382]
[1767243028568,0.0573213,87632.0,87623.0,0.4520213]
[1767243029767,0.0573213,87632.0,87618.0,0.148251]
[1767243029768,0.47581376,87631.0,87618.0,0.148251]
[1767243031015,0.0002013,87632.0,87620.0,0.51663787]
[1767243031016,0.47581376,87629.0,87620.0,0.51663787]
[1767243031226,0.01144,87628.0,87619.0,0.01141304]
[1767243031429,0.05712,87628.0,87618.0,0.15966417]
[1767243031633,0.05712,87628.0,87619.0,0.01141304]
[1767243031842,0.05712,87628.0,87618.0,0.15966417]
[1767243032391,0.05712,87628.0,87618.0,0.01141317]
[1767243032986,0.05712,87628.0,87616.0,0.00053929]
[1767243034591,0.53293376,87628.0,87616.0,0.00053929]
[1767243034943,0.53293376,87628.0,87607.0,0.148251]
[1767243035148,0.53293376,87628.0,87607.0,0.15974635]
[1767243035805,0.53293376,87628.0,87608.0,0.01141448]
[1767243035999,0.53293376,87628.0,87607.0,0.15974635]
[1767243036222,0.53293376,87628.0,87607.0,0.14833174]
[1767243036377,0.53293376,87628.0,87607.0,8.074e-05]
[1767243040656,0.53293376,87628.0,87607.0,0.01149535]
[1767243040852,0.53293376,87628.0,87610.0,0.51663787]
[1767243041175,0.0002013,87632.0,87610.0,0.51663787]
[1767243041176,0.47581376,87626.0,87610.0,0.51663787]
[1767243042009,0.47581376,87626.0,87609.0,0.01141435]
[1767243042896,0.47581376,87626.0,87608.0,0.01141448]
[1767243044361,0.47581376,87626.0,87609.0,0.01141435]
[1767243045689,0.47581376,87626.0,87608.0,0.01141448]
[1767243045929,0.47581376,87626.0,87609.0,0.01141435]
[1767243046236,0.47581376,87626.0,87607.0,0.01149535]
[1767243046666,0.47581376,87626.0,87607.0,8.074e-05]
[1767243048074,0.47581376,87624.0,87610.0,0.51663787]
[1767243048277,0.47581376,87624.0,87607.0,0.01149535]
[1767243048793,0.47581376,87624.0,87608.0,0.01141448]
[1767243049665,0.47581376,87624.0,87609.0,0.01141435]
[1767243049836,0.47581376,87624.0,87608.0,0.01141448]
[1767243050035,0.05712,87623.0,87608.0,0.01141448]
[1767243050263,0.05712,87623.0,87609.0,0.01141435]
[1767243050457,0.01144,87622.0,87608.0,0.01141448]
[1767243050663,0.05712,87622.0,87608.0,0.01141448]
[1767243051241,0.05712,87622.0,87610.0,0.51663787]
[1767243052289,0.47581376,87624.0,87611.0,0.01141409]
[1767243052425,0.05712,87623.0,87610.0,0.51663787]
[1767243052623,0.05712,87623.0,87610.0,0.01141422]
[1767243052828,0.05712,87623.0,87609.0,0.01141435]
[1767243053189,0.05712,87623.0,87610.0,0.01141422]
[1767243053696,0.05712,87623.0,87609.0,0.01141435]
[1767243053847,0.05712,87623.0,87610.0,0.01141422]
[1767243054052,0.47581376,87624.0,87610.0,0.06848526]
[1767243054250,0.05712,87622.0,87612.0,0.01141396]
[1767243054489,0.05712,87622.0,87613.0,0.01141383]
[1767243055871,0.05712,87622.0,87612.0,0.01141396]
[1767243056057,0.056571,87622.0,87612.0,0.01141396]
[1767243056262,0.46339424,87631.0,87614.0,0.0114137]
[1767243056463,0.05712,87630.0,87613.0,0.01141383]
[1767243056667,0.52051424,87630.0,87614.0,0.0114137]
[1767243056915,0.52051424,87630.0,87615.0,0.01141357]
[1767243058453,0.52051424,87630.0,87616.0,0.01141344]
[1767243058633,0.52051424,87630.0,87614.0,0.0114137]
[1767243058832,0.52051424,87630.0,87615.0,0.01141357]
[1767243059216,0.52051424,87630.0,87613.0,0.48621888]
[1767243059411,0.52051424,87630.0,87613.0,0.49763271]
[1767243059648,0.52051424,87630.0,87614.0,0.0114137]
[1767243059765,0.52051424,87630.0,87613.0,0.49763271]
[1767243060202,0.52051424,87630.0,87613.0,0.48621888]
[1767243060413,0.52051424,87630.0,87613.0,0.49763271]
[1767243060810,0.52051424,87630.0,87613.0,0.48621888]
[1767243061884,0.52051424,87630.0,87608.0,0.01141448]
[1767243062091,0.52051424,87630.0,87607.0,0.49771423]
[1767243062445,1.03715211,87630.0,87607.0,0.49771423]
[1767243062606,0.46339424,87629.0,87607.0,0.49771423]
[1767243063002,0.46339424,87629.0,87609.0,0.01141435]
[1767243063205,0.46339424,87629.0,87610.0,0.48621888]
[1767243066553,0.46339424,87629.0,87611.0,0.49763297]
[1767243066960,0.46339424,87629.0,87611.0,0.48621888]
[1767243074928,0.05712,87628.0,87611.0,0.48621888]
[1767243083105,0.50740786,87628.0,87611.0,0.48621888]
[1767243115744,0.50740786,87628.0,87611.0,0.49567856]
[1767243123696,0.05712,87627.0,87611.0,0.49567856]
[1767243127080,0.05712,87626.0,87611.0,0.49567856]
[1767243127283,0.05712,87625.0,87611.0,0.49567856]
[1767243127514,0.01144,87624.0,87611.0,0.49567856]
[1767243130417,0.46711987,87631.0,87611.0,0.49567856]
[1767243130563,0.52423987,87630.0,87611.0,0.49567856]
[1767243133277,0.47855987,87630.0,87611.0,0.49567856]
[1767243133542,0.05712,87629.0,87611.0,0.49567856]
[1767243135315,0.05712,87628.0,87619.0,0.51682698]
[1767243135529,0.05712,87628.0,87620.0,0.49567856]
[1767243141002,0.0002013,87632.0,87620.0,0.49567856]
[1767243141208,0.05712,87631.0,87620.0,0.49567856]
[1767243141506,0.0002013,87632.0,87620.0,0.49567856]
[1767243141721,0.05712,87630.0,87620.0,0.49567856]
[1767243143581,0.0002013,87632.0,87621.0,0.45876767]
[1767243143777,0.05712,87631.0,87621.0,0.45876767]
[1767243143981,0.0002013,87632.0,87621.0,0.45876767]
[1767243144177,0.01144,87631.0,87621.0,0.45876767]
[1767243144401,0.05712,87630.0,87621.0,0.45876767]
[1767243145748,0.05712,87629.0,87621.0,0.45876767]
[1767243145958,0.05712,87628.0,87621.0,0.45876767]
[1767243146551,0.0002013,87632.0,87621.0,0.45876767]
[1767243146552,0.05712,87627.0,87621.0,0.45876767]
[1767243147310,0.05712,87626.0,87621.0,0.45876767]
[1767243147734,0.0002013,87632.0,87621.0,0.45876767]
[1767243147965,0.05712,87631.0,87621.0,0.45876767]
[1767243149672,0.05712,87630.0,87621.0,0.45876767]
[1767243151431,0.05712,87629.0,87621.0,0.45876767]
[1767243152057,0.05712,87628.0,87621.0,0.45876767]
[1767243153820,0.05712,87627.0,87621.0,0.45876767]
[1767243155859,0.05712,87627.0,87618.0,0.45876767]
[1767243158922,0.05712,87627.0,87618.0,0.47018084]
[1767243160747,0.05712,87627.0,87618.0,0.45876767]
[1767243165037,0.05712,87627.0,87618.0,0.47018084]
[1767243165517,0.05712,87627.0,87619.0,0.45876767]
[1767243165728,0.05712,87627.0,87619.0,0.47018071]
[1767243165919,0.05712,87627.0,87620.0,0.45876767]
[1767243168179,0.05712,87626.0,87620.0,0.45876767]
[1767243168937,0.000549,87620.0,87614.0,0.45876767]
[1767243169313,0.01144,87619.0,87613.0,0.03425527]
[1767243169466,0.01144,87618.0,87613.0,0.49302294]
[1767243175934,0.01144,87618.0,87614.0,0.02288]
[1767243176142,0.01144,87618.0,87613.0,0.49302294]
[1767243177310,0.01144,87618.0,87613.0,0.45876767]
[1767243177687,0.01144,87618.0,87613.0,0.4701815]
[1767243177919,0.01144,87618.0,87614.0,0.49087085]
[1767243178805,0.01089,87618.0,87614.0,0.49087085]
[1767243179599,0.01089,87618.0,87614.0,0.50228455]
[1767243179768,0.01089,87618.0,87614.0,0.49087085]
[1767243184976,0.01089,87618.0,87614.0,0.50228455]
[1767243185131,0.01089,87618.0,87615.0,0.01141357]
[1767243185472,0.01089,87618.0,87615.0,0.50228442]
[1767243186714,0.01089,87618.0,87615.0,0.49087085]
[1767243186956,0.01089,87618.0,87615.0,0.50228442]
[1767243187169,0.01089,87618.0,87616.0,0.05706664]
[1767243187972,0.01089,87618.0,87615.0,0.50228442]
[1767243188552,0.01089,87618.0,87615.0,0.55935215]
[1767243188957,0.01089,87618.0,87615.0,0.50228442]
[1767243189479,0.01089,87618.0,87615.0,0.49087085]
[1767243190102,0.01089,87618.0,87615.0,0.50228442]
[1767243191129,0.01089,87618.0,87616.0,0.0570672]
[1767243191339,0.01089,87618.0,87615.0,0.55935171]
[1767243192638,0.01089,87618.0,87617.0,0.05706655]
[1767243194006,0.01089,87618.0,87615.0,0.55935171]
[1767243194223,0.01089,87618.0,87616.0,0.54793753]
[1767243194403,0.01089,87618.0,87616.0,0.49087085]
[1767243195616,0.01089,87618.0,87612.0,0.03425527]
[1767243195617,0.01089,87618.0,87613.0,0.01141383]
[1767243195824,0.01089,87618.0,87614.0,0.0114137]
[1767243196021,0.01089,87618.0,87614.0,0.49087085]
[1767243207612,0.01089,87618.0,87615.0,0.01141357]
[1767243207811,0.01089,87618.0,87615.0,0.06848095]
[1767243208039,0.48352026,87628.0,87621.0,0.01141278]
[1767243208551,0.0002013,87632.0,87623.0,0.01141252]
[1767243208754,0.05712,87627.0,87620.0,0.5281119]
[1767243208963,0.05712,87627.0,87621.0,0.01141278]
[1767243209118,0.05712,87627.0,87617.0,0.51669899]
[1767243209319,0.05712,87627.0,87621.0,0.01141278]
[1767243209524,0.05712,87627.0,87620.0,0.01141291]
[1767243209959,0.05712,87627.0,87621.0,0.01141278]
[1767243210316,0.05712,87627.0,87620.0,0.01141291]
[1767243210521,0.05712,87627.0,87619.0,0.01141304]
[1767243211019,0.05712,87627.0,87620.0,0.01141291]
[1767243211476,0.05712,87627.0,87621.0,0.01141278]
[1767243211710,0.05712,87627.0,87617.0,0.57376499]
[1767243211711,0.05712,87627.0,87617.0,0.51669899]
[1767243211860,0.05712,87627.0,87617.0,0.5281123]
[1767243212063,0.05712,87627.0,87619.0,0.01141304]
[1767243213787,0.05712,87627.0,87618.0,0.01141317]
[1767243214915,0.05712,87627.0,87617.0,0.5281123]
[1767243215815,0.05712,87627.0,87618.0,0.01141317]
[1767243216013,0.05712,87627.0,87617.0,0.5281123]
[1767243216411,0.05712,87627.0,87617.0,0.51669899]
[1767243217587,0.05712,87627.0,87614.0,0.49087085]
[1767243217791,0.05712,87627.0,87617.0,0.51669899]
[1767243218007,0.05712,87627.0,87617.0,0.51614899]
[1767243218544,0.537343,87627.0,87617.0,0.51614899]
[1767243219425,0.537343,87627.0,87612.0,0.04566923]
[1767243219629,0.537343,87627.0,87613.0,0.01141383]
[1767243220182,0.537343,87627.0,87612.0,0.04566923]
[1767243220393,0.537343,87627.0,87612.0,0.03425527]
[1767243221828,0.537343,87627.0,87617.0,0.51669899]
[1767243223986,0.537343,87627.0,87612.0,0.03425527]
[1767243224512,0.537343,87627.0,87612.0,0.04566923]
[1767243225399,0.537343,87627.0,87612.0,0.53122207]
[1767243229618,0.537343,87627.0,87612.0,0.54263603]
[1767243229997,0.537343,87627.0,87612.0,0.53122207]
[1767243233380,0.537343,87627.0,87612.0,0.54263603]
[1767243233593,0.537343,87627.0,87612.0,0.53122207]
[1767243237504,0.537343,87627.0,87612.0,0.03425527]
[1767243237862,0.537343,87627.0,87610.0,0.51669899]
[1767243238654,0.537343,87627.0,87611.0,0.03425554]
[1767243238968,0.05712,87626.0,87611.0,0.03425554]
[1767243239603,0.52010145,87626.0,87611.0,0.03425554]
[1767243240810,0.52010145,87626.0,87612.0,0.01141396]
[1767243241012,0.52010145,87626.0,87615.0,0.01141357]
[1767243241214,0.46298145,87624.0,87603.0,0.47062395]
[1767243241414,0.46298145,87624.0,87611.0,0.01141383]
[1767243246697,0.46298145,87624.0,87610.0,0.51669899]
[1767243250098,0.46298145,87624.0,87610.0,0.52811321]
[1767243250573,0.46298145,87624.0,87610.0,0.51669899]
[1767243251754,0.46298145,87624.0,87609.0,0.03425828]
[1767243251918,0.46298145,87624.0,87610.0,0.51669899]
[1767243254161,0.46298145,87624.0,87610.0,0.52811321]
[1767243254455,0.46298145,87624.0,87610.0,0.51669899]
[1767243255294,0.46298145,87624.0,87610.0,0.52811321]
[1767243255437,0.46298145,87624.0,87612.0,0.01141396]
[1767243256058,0.46298145,87624.0,87613.0,0.01141383]
[1767243256421,0.46298145,87624.0,87612.0,0.01141396]
[1767243256622,0.46298145,87624.0,87611.0,0.01141409]
[1767243256848,0.46298145,87624.0,87610.0,0.5395273]
[1767243257048,0.46298145,87624.0,87611.0,0.01141409]
[1767243257252,0.46298145,87624.0,87610.0,0.5395273]
[1767243257738,0.46298145,87624.0,87611.0,0.01141409]
[1767243257944,0.46298145,87624.0,87611.0,0.06848441]
[1767243258565,0.46298145,87624.0,87613.0,0.01141383]
[1767243259253,0.46298145,87624.0,87615.0,0.01141357]
[1767243259459,0.46298145,87624.0,87614.0,0.0114137]
[1767243259657,0.46298145,87624.0,87613.0,0.01141383]
[1767243260233,0.46298145,87624.0,87612.0,0.01141396]
[1767243260433,0.46298145,87624.0,87611.0,0.01141409]
[1767243260866,0.46298145,87624.0,87612.0,0.01141396]
[1767243261143,0.46298145,87624.0,87611.0,0.01141409]
[1767243261343,0.46298145,87624.0,87613.0,0.01141383]
[1767243261499,0.46298145,87624.0,87612.0,0.01141396]
[1767243261705,0.46298145,87624.0,87614.0,0.0114137]
[1767243262294,0.46298145,87624.0,87615.0,0.01141357]
[1767243262706,0.46298145,87624.0,87614.0,0.0114137]
[1767243263114,0.46298145,87624.0,87613.0,0.01141383]
[1767243263307,0.46298145,87624.0,87608.0,0.05707208]
[1767243263508,0.46298145,87624.0,87611.0,0.01141409]
[1767243263805,0.46298145,87624.0,87610.0,0.5395273]
[1767243264143,0.46298145,87624.0,87611.0,0.01141409]
[1767243265338,0.46298145,87624.0,87612.0,0.01141396]
[1767243266173,0.46298145,87624.0,87613.0,0.01141383]
[1767243266819,0.46298145,87624.0,87616.0,0.01141344]
[1767243267025,0.46298145,87624.0,87615.0,0.01141357]
[1767243267223,0.46298145,87624.0,87614.0,0.0114137]
[1767243267598,0.46298145,87624.0,87615.0,0.01141357]
[1767243268682,0.46298145,87624.0,87610.0,0.58518355]
[1767243268942,0.46298145,87624.0,87613.0,0.01141383]
[1767243269450,0.05712,87626.0,87613.0,0.01141383]
[1767243269745,0.05712,87626.0,87614.0,0.0114137]
[1767243270474,0.05712,87626.0,87613.0,0.01141383]
[1767243270805,0.05712,87626.0,87614.0,0.0114137]
[1767243271659,0.05712,87626.0,87612.0,0.44751821]
[1767243271864,0.05712,87626.0,87612.0,0.45893217]
[1767243272064,0.05712,87626.0,87614.0,0.0114137]
[1767243272402,0.05712,87626.0,87617.0,0.44751821]
[1767243274515,0.05712,87626.0,87613.0,0.01141383]
[1767243275370,0.05712,87626.0,87612.0,0.45893217]
[1767243275611,0.05712,87626.0,87613.0,0.01141383]
[1767243275828,0.05712,87626.0,87613.0,0.45893204]
[1767243276368,0.05712,87626.0,87614.0,0.0114137]
[1767243276768,0.05712,87626.0,87613.0,0.45893204]
[1767243277475,0.05712,87626.0,87613.0,0.44751821]
[1767243277695,0.05712,87626.0,87613.0,0.45893204]
[1767243278055,0.05712,87626.0,87613.0,0.44751821]
[1767243278254,0.05712,87626.0,87614.0,0.0114137]
[1767243279832,0.05712,87626.0,87613.0,0.45893204]
[1767243280040,0.05712,87626.0,87615.0,0.01141357]
[1767243280315,0.05712,87626.0,87614.0,0.0114137]
[1767243280511,0.05712,87626.0,87615.0,0.01141357]
[1767243282188,0.05712,87626.0,87617.0,0.01141331]
[1767243282386,0.05712,87626.0,87616.0,0.01141344]
[1767243282649,0.05712,87626.0,87615.0,0.06848142]
[1767243282812,0.05712,87626.0,87616.0,0.01141344]
[1767243284430,0.05712,87626.0,87615.0,0.01141357]
[1767243284645,0.05712,87626.0,87616.0,0.01141344]
[1767243284809,0.05712,87626.0,87614.0,0.0114137]
[1767243285006,0.05712,87626.0,87613.0,0.45893204]
[1767243285211,0.05712,87626.0,87613.0,0.44751821]
[1767243285434,0.05712,87626.0,87614.0,0.0114137]
[1767243286639,0.05712,87626.0,87615.0,0.01141357]
[1767243286837,0.05712,87626.0,87614.0,0.0114137]
[1767243287188,0.05712,87626.0,87613.0,0.45893204]
[1767243287395,0.05712,87626.0,87614.0,0.0114137]
[1767243287568,0.05712,87626.0,87615.0,0.01141357]
[1767243287936,0.05712,87626.0,87614.0,0.0114137]
[1767243288773,0.05712,87626.0,87613.0,0.45893204]
[1767243288976,0.05712,87626.0,87614.0,0.0114137]
[1767243289981,0.05712,87626.0,87613.0,0.44751821]
[1767243290604,0.05712,87626.0,87613.0,0.45893204]
[1767243291280,0.05712,87626.0,87614.0,0.0114137]
[1767243292481,0.05712,87626.0,87613.0,0.45893204]
[1767243295226,0.05712,87626.0,87613.0,0.44751821]
[1767243295722,0.05712,87626.0,87613.0,0.45893204]
[1767243297492,0.05712,87626.0,87614.0,0.0114137]
[1767243298045,0.05712,87626.0,87613.0,0.44751821]
[1767243298273,0.05712,87626.0,87613.0,0.45893204]
[1767243298581,0.05712,87626.0,87613.0,0.44751821]
[1767243299371,0.05712,87626.0,87613.0,0.45893204]
[1767243300301,0.05712,87626.0,87613.0,0.44751821]
[1767243300516,0.05712,87626.0,87613.0,0.45893204]
[1767243300653,0.05712,87626.0,87613.0,0.44751821]
[1767243300854,0.05712,87626.0,87609.0,0.01141435]
[1767243300855,0.0002013,87632.0,87626.0,0.43943242]
[1767243301267,0.05712,87631.0,87626.0,0.43888342]
[1767243301507,0.05657,87631.0,87626.0,0.43888342]
[1767243304136,0.05657,87631.0,87626.0,0.43833342]
[1767243314056,0.51694569,87650.0,87630.0,0.51679979]
[1767243314057,0.04568,87633.0,87630.0,0.51679979]
[1767243314255,0.01144,87632.0,87626.0,0.47258717]
[1767243314460,0.010891,87632.0,87626.0,0.47258717]
[1767243315317,0.010891,87632.0,87629.0,0.43888342]
[1767243321461,0.000549,87629.0,87623.0,0.4651895]
[1767243321881,0.010891,87632.0,87623.0,0.4651895]
[1767243323568,0.010891,87632.0,87627.0,0.43093595]
[1767243324401,0.010891,87632.0,87628.0,0.43093595]
[1767243327983,0.010891,87632.0,87624.0,0.03425355]
[1767243328538,0.010891,87632.0,87623.0,0.43093595]
[1767243330046,0.010891,87632.0,87623.0,0.44234847]
[1767243330426,0.010891,87632.0,87623.0,0.43093595]
[1767243334739,0.010891,87632.0,87623.0,0.44234847]
[1767243335244,0.010891,87632.0,87623.0,0.43093595]
[1767243335600,0.010891,87632.0,87623.0,0.44234847]
[1767243337005,0.010891,87632.0,87623.0,0.43093595]
[1767243337928,0.000549,87623.0,87610.0,0.43108185]
[1767243338136,0.01144,87622.0,87612.0,0.15966496]
[1767243338299,0.01144,87621.0,87618.0,0.43093595]
[1767243338498,0.47231365,87633.0,87621.0,0.00055]
[1767243338735,0.01144,87632.0,87618.0,0.43093595]
[1767243340985,0.51663781,87630.0,87618.0,0.43093595]
[1767243341161,0.51663781,87630.0,87617.0,0.03425453]
[1767243346065,0.51663781,87630.0,87613.0,0.43093595]
[1767243346269,0.51663781,87630.0,87614.0,0.03425453]
[1767243346467,0.94273223,87630.0,87614.0,0.03425453]
[1767243347312,0.94273223,87630.0,87614.0,0.46519048]
[1767243347661,0.94273223,87630.0,87614.0,0.43093595]
[1767243348122,0.94273223,87630.0,87615.0,0.03425453]
[1767243350618,0.51663781,87630.0,87616.0,0.39119399]
[1767243351436,0.04568,87629.0,87616.0,0.39119399]
[1767243351739,0.04568,87629.0,87616.0,0.42544852]
[1767243355375,0.04513,87629.0,87619.0,0.51663781]
[1767243356415,0.04513,87629.0,87616.0,0.43686196]
[1767243356799,0.04513,87629.0,87617.0,0.01141331]
[1767243357029,0.04513,87629.0,87616.0,0.42544852]
[1767243357981,0.04513,87629.0,87616.0,0.43686196]
[1767243358152,0.04513,87629.0,87617.0,0.01141331]
[1767243358357,0.04513,87629.0,87616.0,0.40260743]
[1767243360036,0.04513,87629.0,87618.0,0.01141317]
[1767243360246,0.04513,87629.0,87620.0,0.01141291]
[1767243360697,0.04513,87629.0,87619.0,0.01141304]
[1767243360909,0.04513,87629.0,87620.0,0.01141291]
[1767243361068,0.04513,87629.0,87622.0,0.01141265]
[1767243361270,0.04513,87629.0,87621.0,0.40260677]
[1767243361491,0.04513,87629.0,87621.0,0.39119399]
[1767243361696,0.04513,87629.0,87621.0,0.40260677]
[1767243362306,0.04513,87629.0,87621.0,0.39119399]
[1767243362507,0.04513,87629.0,87621.0,0.40260677]
[1767243362711,0.04513,87629.0,87621.0,0.39119399]
[1767243363215,0.04513,87629.0,87621.0,0.40260677]
[1767243363590,0.04513,87629.0,87621.0,0.39119399]
[1767243363775,0.04513,87629.0,87621.0,0.40260677]
[1767243364771,0.04513,87629.0,87621.0,0.39119399]
[1767243364985,0.04513,87629.0,87621.0,0.40260677]
[1767243365828,0.04513,87629.0,87622.0,0.01141265]
[1767243366030,0.04513,87629.0,87622.0,0.06847592]
[1767243366442,0.04513,87629.0,87622.0,0.39119399]
[1767243366845,0.04513,87629.0,87623.0,0.01141252]
[1767243367261,0.04513,87629.0,87622.0,0.40260664]
[1767243367472,0.04513,87629.0,87623.0,0.01141252]
[1767243367651,0.04513,87629.0,87622.0,0.40260664]
[1767243367857,0.04513,87629.0,87622.0,0.39119399]
[1767243369326,0.04513,87629.0,87622.0,0.40260664]
[1767243369494,0.04513,87629.0,87622.0,0.39119399]
[1767243371943,0.04513,87629.0,87622.0,0.40260664]
[1767243372210,0.04513,87629.0,87622.0,0.39119399]
[1767243377267,0.04513,87629.0,87622.0,0.40260664]
[1767243377492,0.04513,87629.0,87622.0,0.39119399]
[1767243377678,0.04513,87629.0,87622.0,0.40260664]
[1767243377880,0.04513,87629.0,87622.0,0.39119399]
[1767243378199,0.04513,87629.0,87623.0,0.01141252]
[1767243379083,0.04513,87629.0,87622.0,0.39119399]
[1767243379468,0.04513,87629.0,87622.0,0.40260664]
[1767243379709,0.04513,87629.0,87622.0,0.39119399]
[1767243380395,0.04513,87629.0,87622.0,0.40260664]
[1767243381284,0.04513,87629.0,87622.0,0.39119399]
[1767243382033,0.04513,87629.0,87622.0,0.40260664]
[1767243382235,0.04513,87629.0,87622.0,0.39119399]
[1767243382432,0.04513,87629.0,87622.0,0.40260664]
[1767243382638,0.05712,87628.0,87625.0,0.01141226]
[1767243383037,0.05712,87628.0,87624.0,0.01141239]
[1767243383605,0.05712,87628.0,87621.0,0.05706374]
[1767243383811,0.05712,87628.0,87621.0,0.01141278]
[1767243384821,0.05712,87628.0,87622.0,0.01141265]
[1767243385306,0.05712,87628.0,87623.0,0.01141252]
[1767243385505,0.05712,87628.0,87622.0,0.01141265]
[1767243385708,0.05712,87628.0,87619.0,0.41694209]
[1767243385930,0.05712,87628.0,87619.0,0.40552905]
[1767243386883,0.05712,87628.0,87620.0,0.01141291]
[1767243387074,0.05712,87628.0,87621.0,0.02288]
[1767243387233,0.05712,87628.0,87622.0,0.01141265]
[1767243387435,0.05712,87628.0,87620.0,0.01141291]
[1767243387643,0.05712,87628.0,87621.0,0.01141278]
[1767243388212,0.05712,87628.0,87620.0,0.01141291]
[1767243388419,0.05712,87628.0,87619.0,0.40552905]
[1767243388591,0.05712,87628.0,87620.0,0.01141291]
[1767243388798,0.05712,87628.0,87621.0,0.01141278]
[1767243389155,0.05712,87628.0,87620.0,0.01141291]
[1767243389357,0.05712,87628.0,87622.0,0.01141265]
[1767243389955,0.05712,87628.0,87620.0,0.01141291]
[1767243390157,0.05712,87628.0,87619.0,0.40552905]
[1767243390533,0.05712,87628.0,87612.0,0.40552905]
[1767243390733,0.37799127,87627.0,87612.0,0.41694301]
[1767243390887,0.37669396,87627.0,87612.0,0.40552905]
[1767243392273,0.000549,87612.0,87610.0,0.40567495]
[1767243392402,0.010891,87611.0,87610.0,0.40567495]
[1767243392609,0.51686798,87620.0,87610.0,0.40567495]
[1767243392809,0.37669396,87627.0,87610.0,0.40567495]
[1767243392810,0.01144,87619.0,87610.0,0.40567495]
[1767243393638,0.01144,87619.0,87610.0,0.40512595]
[1767243397109,0.01144,87619.0,87611.0,0.02288]
[1767243397270,0.01144,87619.0,87610.0,0.40512595]
[1767243401531,0.01144,87619.0,87610.0,0.41654017]
[1767243401680,0.01144,87619.0,87610.0,0.40512595]
[1767243403765,0.00055,87610.0,87607.0,8.074e-05]
[1767243403971,0.37799127,87621.0,87610.0,0.00054999]
[1767243403972,0.01199,87620.0,87610.0,0.00054999]
[1767243404175,0.01144,87619.0,87610.0,0.00054999]
[1767243406419,0.01199,87618.0,87610.0,0.00054999]
[1767243409428,0.01101719,87618.0,87610.0,0.00054999]